[Event "EYCC Open-U12 2019"]
[Site "Bratislava"]
[Date "2019.08.08"]
[Round "7.48"]
[White "Snitsarenko, Igor"]
[Black "Wahlgreen, Noah"]
[Result "0-1"]
[ECO "B12"]
[WhiteElo "1481"]
[BlackElo "1743"]
[Annotator "NA"]
[PlyCount "98"]
[EventDate "2019.08.02"]
[EventType "swiss"]
[EventCountry "SVK"]
[SourceTitle "playchess.com"]
[Source "ChessBase"]
[SourceQuality "1"]
[TimeControl "40/5400+30:1800+30"]

1. e4 {[%emt 0:00:07]} c6 {[%emt 0:00:00]} 2. d4 {[%emt 0:00:04]} d5 {[%emt 0:00:00]} 3. e5 {[%emt 0:00:04]} Bf5 {[%emt 0:00:00]} 4. h4 {[%emt 0:00:21]} h5 {[%emt 0:00:00]} 5. Bd3 {[%emt 0:00:04]} Bxd3 {[%emt 0:00:00]} 6. Qxd3 {[%emt 0:00:05]} Qa5+ {[%emt 0:00:09]} 7. Nd2 {[%emt 0:01:28]} e6 {[%emt 0:00:08]} 8. Ngf3 {[%emt 0:05:54]} Nh6 {[%emt 0:00:08]} 9. c3 {[%emt 0:02:11]} Nf5 {[%emt 0:02:49]} 10. Nb3 {[%emt 0:00:15]} Qa6 {[%emt 0:01:25]} 11. Qxa6 {[%emt 0:07:08]} Nxa6 {[%emt 0:00:06]} 12. Be3 {[%emt 0:03:23]} Be7 {[%emt 0:01:15]} 13. Ke2 {[%emt 0:04:18]} Rc8 {[%emt 0:02:00]} 14. g3 {[%emt 0:03:24]} O-O {[%emt 0:05:43]} 15. Kd2 {[%emt 0:03:18]} Rfd8 {[%emt 0:03:57]} 16. Nc1 {[%emt 0:02:05]} c5 {[%emt 0:01:28]} 17. a3 {[%emt 0:01:04]} Rd7 {[%emt 0:04:51]} 18. Ne2 {[%emt 0:01:36]} Nb8 {[%emt 0:03:17]} 19. Nf4 {[%emt 0:08:17]} g6 {[%emt 0:01:13]} 20. Nd3 {[%emt 0:00:44]} c4 {[%emt 0:03:13]} 21. Nb4 {[%emt 0:00:47]} a5 {[%emt 0:00:16]} 22. Nc2 {[%emt 0:00:07]} Nc6 {[%emt 0:00:58]} 23. a4 {[%emt 0:01:18]} Kg7 {[%emt 0:00:41]} 24. Bg5 {[%emt 0:00:23]} b6 {[%emt 0:02:01]} 25. Bxe7 {[%emt 0:00:43]} Rxe7 {[%emt 0:00:37]} 26. Ne3 {[%emt 0:05:13]} Nxe3 {[%emt 0:00:28]} 27. fxe3 {[%emt 0:00:14]} Rb8 {[%emt 0:00:08]} 28. Kc2 {[%emt 0:09:09]} Reb7 {[%emt 0:00:31]} 29. Ng5 {[%emt 0:05:20]} Ne7 {[%emt 0:00:15]} 30. e4 {[%emt 0:01:21]} dxe4 {[%emt 0:02:10]} 31. Nxe4 {[%emt 0:00:28]} Nf5 {[%emt 0:00:07]} 32. Ra3 {[%emt 0:09:41]} b5 {[%emt 0:07:04]} 33. Nc5 {[%emt 0:03:43]} b4 {[%emt 0:01:26]} 34. Nxb7 {[%emt 0:02:44]} bxa3 {[%emt 0:00:16]} 35. Nxa5 {[%emt 0:00:14]} Rxb2+ {[%emt 0:00:53]} 36. Kc1 {[%emt 0:07:16]} Nxg3 {[%emt 0:00:57]} 37. Re1 {[%emt 0:01:45]} Ne2+ {[%emt 0:00:30]} 38. Rxe2 {[%emt 0:00:04]} Rxe2 {[%emt 0:00:07]} 39. Kb1 {[%emt 0:00:03]} Re3 {[%emt 0:01:56]} 40. Nc6 {[%emt 0:00:00]} Rxc3 {[%emt 0:00:00]} 41. a5 {[%emt 0:02:42]} Rb3+ {[%emt 0:01:45]} 42. Ka2 {[%emt 0:00:11]} g5 {[%emt 0:00:28]} 43. a6 {[%emt 0:00:26]} Rb6 {[%emt 0:00:11]} 44. a7 {[%emt 0:00:36]} Ra6 {[%emt 0:00:05]} 45. hxg5 {[%emt 0:00:24]} h4 {[%emt 0:00:04]} 46. g6 {[%emt 0:00:01]} fxg6 {[%emt 0:00:10]} 47. d5 {[%emt 0:00:03]} exd5 {[%emt 0:00:26]} 48. e6 {[%emt 0:00:05]} h3 {[%emt 0:00:18]} 49. e7 {[%emt 0:00:06]} Kf7 {[%emt 0:00:11]} 0-1

[Event "EYCC Open-U12 2019"]
[Site "Bratislava"]
[Date "2019.08.08"]
[Round "7.50"]
[White "Asllani, Dorian"]
[Black "Soucek, Jan"]
[Result "1-0"]
[ECO "D47"]
[WhiteElo "1718"]
[BlackElo "1577"]
[Annotator "NA"]
[PlyCount "79"]
[EventDate "2019.08.02"]
[EventType "swiss"]
[EventCountry "SVK"]
[SourceTitle "playchess.com"]
[Source "ChessBase"]
[SourceQuality "1"]
[TimeControl "40/5400+30:1800+30"]

1. d4 {[%emt 0:00:00]} d5 {[%emt 0:01:28]} 2. Nf3 {[%emt 0:00:09]} Nf6 {[%emt 0:00:06]} 3. c4 {[%emt 0:00:24]} c6 {[%emt 0:00:10]} 4. Nc3 {[%emt 0:00:30]} e6 {[%emt 0:00:11]} 5. e3 {[%emt 0:00:11]} Nbd7 {[%emt 0:00:36]} 6. Bd3 {[%emt 0:01:21]} dxc4 {[%emt 0:00:20]} 7. Bxc4 {[%emt 0:00:07]} b5 {[%emt 0:00:08]} 8. Bd3 {[%emt 0:00:22]} Bb7 {[%emt 0:00:21]} 9. O-O {[%emt 0:00:38]} Bd6 {[%emt 0:01:40]} 10. e4 {[%emt 0:00:32]} e5 {[%emt 0:21:25]} 11. dxe5 {[%emt 0:22:29]} Nxe5 {[%emt 0:00:18]} 12. Nxe5 {[%emt 0:00:16]} Bxe5 {[%emt 0:00:06]} 13. f4 {[%emt 0:00:16]} Bd4+ {[%emt 0:01:23]} 14. Kh1 {[%emt 0:00:36]} O-O {[%emt 0:01:45]} 15. e5 {[%emt 0:04:23]} Bxc3 {[%emt 0:15:32]} 16. bxc3 {[%emt 0:02:16]} Nd5 {[%emt 0:00:53]} 17. Qc2 {[%emt 0:01:04]} Qh4 {[%emt 0:09:47]} 18. Bd2 {[%emt 0:01:00]} Nb6 {[%emt 0:21:51]} 19. Be3 {[%emt 0:09:19]} Nd7 {[%emt 0:03:55]} 20. Bf5 {[%emt 0:00:50]} Rad8 {[%emt 0:02:11]} 21. Rf3 {[%emt 0:01:17]} g6 {[%emt 0:01:17]} 22. Be4 {[%emt 0:03:35]} Qe7 {[%emt 0:01:51]} 23. Rh3 {[%emt 0:05:56]} Nc5 {[%emt 0:01:47]} 24. Bf3 {[%emt 0:00:24]} Bc8 {[%emt 0:00:30]} 25. Rg3 {[%emt 0:00:46]} Kh8 {[%emt 0:01:05]} 26. Bxc6 {[%emt 0:02:01]} Bf5 {[%emt 0:03:25]} 27. Qf2 {[%emt 0:00:28]} Nd3 {[%emt 0:01:48]} 28. Qg1 {[%emt 0:00:20]} a6 {[%emt 0:02:19]} 29. Bd4 {[%emt 0:02:05]} Rc8 {[%emt 0:01:27]} 30. e6+ {[%emt 0:02:42]} f6 {[%emt 0:01:54]} 31. Bd7 {[%emt 0:00:22]} Rc7 {[%emt 0:00:55]} 32. Qe3 {[%emt 0:03:41]} Nb2 {[%emt 0:02:44]} 33. Re1 {[%emt 0:03:50]} Nc4 {[%emt 0:00:19]} 34. Qf2 {[%emt 0:01:48]} h5 {[%emt 0:00:43]} 35. h3 {[%emt 0:02:08]} Rd8 {[%emt 0:00:33]} 36. Kh2 {[%emt 0:01:10]} Kh7 {[%emt 0:00:32]} 37. Bb6 {[%emt 0:04:35]} Nxb6 {[%emt 0:00:41]} 38. Qxb6 {[%emt 0:00:09]} Rcc8 {[%emt 0:00:28]} 39. Bxc8 {[%emt 0:00:27]} Rxc8 {[%emt 0:00:03]} 40. Qxa6 {[%emt 0:00:00]} 1-0

[Event "EYCC Open-U12 2019"]
[Site "Bratislava"]
[Date "2019.08.08"]
[Round "7.51"]
[White "Aasen, Joakim"]
[Black "Aasen, Fredrik"]
[Result "1/2-1/2"]
[ECO "C46"]
[WhiteElo "1718"]
[BlackElo "1606"]
[Annotator "NA"]
[PlyCount "32"]
[EventDate "2019.08.02"]
[EventType "swiss"]
[EventCountry "SVK"]
[SourceTitle "playchess.com"]
[Source "ChessBase"]
[SourceQuality "1"]
[TimeControl "40/5400+30:1800+30"]

1. e4 {[%emt 0:00:00]} e5 {[%emt 0:00:00]} 2. Nf3 {[%emt 0:00:19]} Nc6 {[%emt 0:01:28]} 3. Nc3 {[%emt 0:03:31]} d6 {[%emt 0:06:10]} 4. Bc4 {[%emt 0:02:56]} Be7 {[%emt 0:04:55]} 5. O-O {[%emt 0:00:35]} Nf6 {[%emt 0:01:03]} 6. d3 {[%emt 0:00:36]} O-O {[%emt 0:01:11]} 7. Bg5 {[%emt 0:02:41]} Bg4 {[%emt 0:02:49]} 8. h3 {[%emt 0:01:11]} Bh5 {[%emt 0:00:15]} 9. Bxf6 {[%emt 0:02:40]} Bxf6 {[%emt 0:00:21]} 10. Nd5 {[%emt 0:01:34]} Na5 {[%emt 0:02:09]} 11. Bb3 {[%emt 0:01:00]} Nxb3 {[%emt 0:00:10]} 12. axb3 {[%emt 0:00:08]} c6 {[%emt 0:00:39]} 13. Nxf6+ {[%emt 0:00:23]} Qxf6 {[%emt 0:00:13]} 14. b4 {[%emt 0:01:15]} Bxf3 {[%emt 0:00:34]} 15. Qxf3 {[%emt 0:00:29]} Qxf3 {[%emt 0:00:16]} 16. gxf3 {[%emt 0:00:12]} f5 1/2-1/2

[Event "EYCC Open-U12 2019"]
[Site "Bratislava"]
[Date "2019.08.08"]
[Round "7.52"]
[White "Knudsen, Philip Uhre"]
[Black "Lup, Constantin-Ionel"]
[Result "1-0"]
[ECO "B90"]
[WhiteElo "1590"]
[BlackElo "1739"]
[Annotator "NA"]
[PlyCount "65"]
[EventDate "2019.08.02"]
[EventType "swiss"]
[EventCountry "SVK"]
[SourceTitle "playchess.com"]
[Source "ChessBase"]
[SourceQuality "1"]
[TimeControl "40/5400+30:1800+30"]

1. e4 {[%emt 0:00:00]} c5 {[%emt 0:00:00]} 2. Nf3 {[%emt 0:00:00]} d6 {[%emt 0:00:03]} 3. d4 {[%emt 0:00:02]} cxd4 {[%emt 0:00:07]} 4. Nxd4 {[%emt 0:00:10]} Nf6 {[%emt 0:00:05]} 5. Nc3 {[%emt 0:00:31]} a6 {[%emt 0:00:09]} 6. Be3 {[%emt 0:00:57]} g6 {[%emt 0:00:27]} 7. Qd2 {[%emt 0:01:19]} b5 {[%emt 0:00:41]} 8. f3 {[%emt 0:00:45]} h5 {[%emt 0:01:15]} 9. a4 {[%emt 0:00:59]} b4 {[%emt 0:09:31]} 10. Na2 {[%emt 0:01:46]} a5 {[%emt 0:00:13]} 11. c3 {[%emt 0:01:05]} bxc3 {[%emt 0:00:59]} 12. Nxc3 {[%emt 0:00:22]} Ba6 {[%emt 0:04:31]} 13. Rc1 {[%emt 0:10:02]} Bxf1 {[%emt 0:02:58]} 14. Rxf1 {[%emt 0:01:22]} Na6 {[%emt 0:08:15]} 15. Nc6 {[%emt 0:07:12]} Qd7 {[%emt 0:00:29]} 16. Nxa5 {[%emt 0:12:12]} Bg7 {[%emt 0:03:45]} 17. Nc4 {[%emt 0:03:19]} Rb8 {[%emt 0:02:00]} 18. Kf2 {[%emt 0:08:07]} O-O {[%emt 0:04:31]} 19. Nb6 {[%emt 0:05:37]} Qb7 {[%emt 0:06:19]} 20. a5 {[%emt 0:06:49]} Nd7 {[%emt 0:02:55]} 21. Ncd5 {[%emt 0:02:41]} Ndc5 {[%emt 0:01:16]} 22. Qd1 {[%emt 0:14:30]} Bxb2 {[%emt 0:13:34]} 23. Rb1 {[%emt 0:00:10]} Bg7 {[%emt 0:00:13]} 24. Qc2 {[%emt 0:02:56]} Qa7 {[%emt 0:01:46]} 25. Kg1 {[%emt 0:01:19]} e6 {[%emt 0:16:45]} 26. Nc3 {[%emt 0:01:39]} Nb4 {[%emt 0:03:10]} 27. Rxb4 {[%emt 0:01:08]} Qxa5 {[%emt 0:00:07]} 28. Rfb1 {[%emt 0:00:12]} Bxc3 {[%emt 0:00:18]} 29. Qxc3 {[%emt 0:00:37]} Rxb6 {[%emt 0:00:39]} 30. Bh6 {[%emt 0:00:12]} e5 {[%emt 0:01:26]} 31. Bxf8 {[%emt 0:01:02]} Rxb4 {[%emt 0:00:24]} 32. Rxb4 {[%emt 0:05:12]} Na4 {[%emt 0:01:44]} 33. Qc4 {[%emt 0:04:08]} 1-0

[Event "EYCC Open-U12 2019"]
[Site "Bratislava"]
[Date "2019.08.08"]
[Round "7.53"]
[White "Trzebinski, Patryk"]
[Black "Skreko, Igor"]
[Result "0-1"]
[ECO "B90"]
[WhiteElo "1679"]
[BlackElo "1688"]
[Annotator "NA"]
[PlyCount "68"]
[EventDate "2019.08.02"]
[EventType "swiss"]
[EventCountry "SVK"]
[SourceTitle "playchess.com"]
[Source "ChessBase"]
[SourceQuality "1"]
[TimeControl "40/5400+30:1800+30"]

1. e4 {[%emt 0:00:00]} c5 {[%emt 0:00:00]} 2. Nf3 {[%emt 0:00:00]} d6 {[%emt 0:00:00]} 3. d4 {[%emt 0:00:00]} cxd4 {[%emt 0:00:00]} 4. Nxd4 {[%emt 0:00:07]} Nf6 {[%emt 0:00:00]} 5. Nc3 {[%emt 0:00:11]} a6 {[%emt 0:00:00]} 6. Be3 {[%emt 0:00:16]} e6 {[%emt 0:00:03]} 7. Be2 {[%emt 0:00:07]} b5 {[%emt 0:00:46]} 8. Bf3 {[%emt 0:02:30]} e5 {[%emt 0:01:41]} 9. Nb3 {[%emt 0:03:28]} Bb7 {[%emt 0:00:59]} 10. g4 {[%emt 0:01:07]} b4 {[%emt 0:02:02]} 11. Nd5 {[%emt 0:05:22]} Nxd5 {[%emt 0:01:38]} 12. exd5 {[%emt 0:00:12]} Be7 {[%emt 0:05:29]} 13. Qd2 {[%emt 0:08:03]} a5 {[%emt 0:00:31]} 14. a4 {[%emt 0:00:54]} Nd7 {[%emt 0:02:32]} 15. h4 {[%emt 0:02:01]} Qc7 {[%emt 0:03:29]} 16. g5 {[%emt 0:14:07]} Nb6 {[%emt 0:03:12]} 17. Bxb6 {[%emt 0:00:48]} Qxb6 {[%emt 0:00:05]} 18. Qe3 {[%emt 0:03:29]} Qc7 {[%emt 0:02:04]} 19. Be4 {[%emt 0:00:55]} Bd8 {[%emt 0:06:41]} 20. Nd2 {[%emt 0:04:25]} Rc8 {[%emt 0:08:13]} 21. Qd3 {[%emt 0:01:35]} Qc5 {[%emt 0:05:02]} 22. Rh3 {[%emt 0:07:28]} Bb6 {[%emt 0:06:16]} 23. Rf3 {[%emt 0:04:32]} Rc7 {[%emt 0:03:09]} 24. h5 {[%emt 0:06:34]} Bc8 {[%emt 0:02:15]} 25. Bf5 {[%emt 0:11:23]} Bxf5 {[%emt 0:03:44]} 26. Rxf5 {[%emt 0:04:00]} O-O {[%emt 0:10:41]} 27. Rc1 {[%emt 0:05:48]} Qd4 {[%emt 0:02:05]} 28. Qb5 {[%emt 0:04:08]} Qxb2 {[%emt 0:05:55]} 29. Rb1 {[%emt 0:01:12]} Qd4 {[%emt 0:00:22]} 30. h6 {[%emt 0:02:03]} Rxc2 {[%emt 0:03:22]} 31. hxg7 {[%emt 0:00:51]} Qxd2+ {[%emt 0:01:55]} 32. Kf1 {[%emt 0:00:00]} Kxg7 {[%emt 0:00:53]} 33. Rf3 {[%emt 0:04:50]} Bxf2 {[%emt 0:01:55]} 34. Qa6 {[%emt 0:03:18]} Bh4 {[%emt 0:00:42]} 0-1

[Event "EYCC Open-U12 2019"]
[Site "Bratislava"]
[Date "2019.08.08"]
[Round "7.54"]
[White "Lazic, Emanuel"]
[Black "Jetzl, Julian"]
[Result "1-0"]
[ECO "B41"]
[WhiteElo "1449"]
[BlackElo "1719"]
[Annotator "NA"]
[PlyCount "147"]
[EventDate "2019.08.02"]
[EventType "swiss"]
[EventCountry "SVK"]
[SourceTitle "playchess.com"]
[Source "ChessBase"]
[SourceQuality "1"]
[TimeControl "40/5400+30:1800+30"]

1. e4 c5 2. Nf3 e6 3. d4 cxd4 4. Nxd4 a6 5. c4 Nf6 6. Nc3 Qc7 7. Be2 b6 8. O-O Bb7 9. f3 d6 10. Be3 Be7 11. Qd2 O-O 12. Rfc1 Re8 13. Kh1 Nbd7 14. Bf1 Rac8 15. a4 Qb8 16. a5 Bd8 17. axb6 Bxb6 18. Na4 Bc7 19. g3 Nb6 20. b4 Nxa4 21. Rxa4 Bb6 22. Nc2 Qa7 23. Bxb6 Qxb6 24. Nd4 Nd7 25. Ra2 Ne5 26. Be2 Rc7 27. b5 Rec8 28. bxa6 Ba8 29. Rac2 Rc5 30. Nb5 Rd8 31. Ra1 d5 32. exd5 exd5 33. Qf4 dxc4 34. Nc3 Nd3 35. Bxd3 cxd3 36. Na4 Rxc2 37. Nxb6 d2 38. Rd1 Rc1 39. Rxc1 Bxf3+ 40. Kg1 dxc1=Q+ 41. Qxc1 Rd1+ 42. Qxd1 Bxd1 43. a7 Bf3 44. a8=Q+ Bxa8 45. Nxa8 g6 46. Kf2 Kg7 47. Kf3 g5 48. Nc7 Kg6 49. Nd5 f5 50. Ne3 Kf6 51. Ng2 Ke5 52. Ke3 Kd5 53. Ne1 Ke5 54. Nf3+ Kf6 55. Kd4 h5 56. h4 gxh4 57. gxh4 Ke6 58. Ke3 Kf6 59. Kf4 Kg6 60. Nd4 Kf6 61. Nxf5 Kg6 62. Nd4 Kf6 63. Nf3 Kg6 64. Ke5 Kh6 65. Kf5 Kg7 66. Kg5 Kh7 67. Kxh5 Kg7 68. Kg5 Kh7 69. h5 Kg7 70. h6+ Kg8 71. Kg6 Kh8 72. Ng5 Kg8 73. h7+ Kh8 74. Nf7# 1-0

[Event "EYCC Open-U12 2019"]
[Site "Bratislava"]
[Date "2019.08.09"]
[Round "8.2"]
[White "Petrovskiy, Vadim"]
[Black "Makridis, Dimitrios"]
[Result "1-0"]
[ECO "B29"]
[WhiteElo "2090"]
[BlackElo "1798"]
[Annotator "NA"]
[PlyCount "139"]
[EventDate "2019.08.02"]
[EventType "swiss"]
[EventCountry "SVK"]
[SourceTitle "playchess.com"]
[Source "ChessBase"]
[SourceQuality "1"]
[TimeControl "40/5400+30:1800+30"]

1. e4 {[%emt 0:00:00]} c5 {[%emt 0:00:00]} 2. Nf3 {[%emt 0:00:00]} Nf6 {[%emt 0:00:00]} 3. e5 {[%emt 0:03:44]} Nd5 {[%emt 0:00:00]} 4. Nc3 {[%emt 0:00:18]} e6 {[%emt 0:00:00]} 5. b3 {[%emt 0:05:01]} Nc6 {[%emt 0:00:00]} 6. Bb2 {[%emt 0:01:07]} Be7 {[%emt 0:19:17]} 7. Bc4 {[%emt 0:05:15]} Nxc3 {[%emt 0:07:24]} 8. dxc3 {[%emt 0:02:29]} Qc7 {[%emt 0:00:55]} 9. Qe2 {[%emt 0:00:21]} f6 {[%emt 0:06:50]} 10. exf6 {[%emt 0:05:10]} Bxf6 {[%emt 0:00:01]} 11. O-O-O {[%emt 0:00:52]} O-O {[%emt 0:14:06]} 12. h4 {[%emt 0:07:11]} d5 {[%emt 0:03:08]} 13. Bd3 {[%emt 0:00:29]} Ne5 {[%emt 0:09:32]} 14. Nxe5 {[%emt 0:09:05]} Qxe5 {[%emt 0:07:15]} 15. Qd2 {[%emt 0:02:01]} a5 {[%emt 0:05:18]} 16. Kb1 {[%emt 0:02:49]} a4 {[%emt 0:00:28]} 17. g4 {[%emt 0:09:53]} a3 {[%emt 0:01:02]} 18. Ba1 {[%emt 0:00:10]} c4 {[%emt 0:02:04]} 19. f4 {[%emt 0:01:20]} Qc7 {[%emt 0:00:45]} 20. Be2 {[%emt 0:01:33]} b5 {[%emt 0:05:53]} 21. g5 {[%emt 0:07:20]} Be7 {[%emt 0:00:12]} 22. Rhf1 {[%emt 0:00:13]} Ra6 {[%emt 0:04:10]} 23. b4 {[%emt 0:02:02]} Rd8 {[%emt 0:01:31]} 24. Qe3 {[%emt 0:01:06]} Rf8 {[%emt 0:04:22]} 25. Bg4 {[%emt 0:04:59]} Kh8 {[%emt 0:01:15]} 26. Qd4 {[%emt 0:12:49]} Qa7 {[%emt 0:03:53]} 27. Qd2 {[%emt 0:01:02]} Qc7 {[%emt 0:01:11]} 28. Rde1 {[%emt 0:00:33]} Bd6 {[%emt 0:00:59]} 29. Bxe6 {[%emt 0:01:48]} Bxe6 {[%emt 0:02:08]} 30. Rxe6 {[%emt 0:00:05]} Raa8 {[%emt 0:00:37]} 31. Qxd5 {[%emt 0:00:32]} Bxf4 {[%emt 0:00:13]} 32. Qxb5 {[%emt 0:01:25]} Bxg5 {[%emt 0:00:36]} 33. Rxf8+ {[%emt 0:00:23]} Rxf8 {[%emt 0:00:04]} 34. Re8 {[%emt 0:00:47]} Be7 {[%emt 0:00:21]} 35. Rxf8+ {[%emt 0:00:45]} Bxf8 {[%emt 0:00:01]} 36. Qa6 {[%emt 0:00:41]} Qe7 {[%emt 0:00:28]} 37. Qxa3 {[%emt 0:00:16]} Qxh4 {[%emt 0:00:00]} 38. Qa8 {[%emt 0:01:15]} Qf6 {[%emt 0:01:02]} 39. Bb2 {[%emt 0:02:01]} h5 {[%emt 0:00:42]} 40. b5 {[%emt 0:00:00]} Qf1+ {[%emt 0:00:00]} 41. Bc1 {[%emt 0:00:30]} Kh7 {[%emt 0:07:15]} 42. b6 {[%emt 0:00:50]} Qf2 {[%emt 0:01:04]} 43. Qc6 {[%emt 0:00:44]} Qe1 {[%emt 0:05:09]} 44. Qxc4 {[%emt 0:02:01]} Ba3 {[%emt 0:01:16]} 45. Qd3+ {[%emt 0:00:06]} Kh8 {[%emt 0:02:36]} 46. Qe3 {[%emt 0:03:15]} Qh1 {[%emt 0:00:49]} 47. c4 {[%emt 0:01:16]} Bxc1 {[%emt 0:01:51]} 48. Qxc1 {[%emt 0:00:01]} Qc6 {[%emt 0:03:24]} 49. Qe3 {[%emt 0:00:06]} Qxc4 {[%emt 0:01:34]} 50. Qe8+ Kh7 51. Qxh5+ {[%emt 0:00:23]} Kg8 {[%emt 0:00:05]} 52. Qa5 {[%emt 0:05:04]} Qf1+ {[%emt 0:00:17]} 53. Kb2 {[%emt 0:00:06]} Qf6+ {[%emt 0:00:12]} 54. Kb3 {[%emt 0:00:06]} Qe6+ {[%emt 0:00:32]} 55. c4 {[%emt 0:00:12]} Qe3+ {[%emt 0:00:06]} 56. Kb4 {[%emt 0:00:13]} Qe1+ {[%emt 0:01:32]} 57. Kb5 {[%emt 0:00:13]} Qe8+ {[%emt 0:00:09]} 58. Kb4 {[%emt 0:00:35]} Qe1+ {[%emt 0:01:17]} 59. Ka4 {[%emt 0:00:06]} Qe2 {[%emt 0:02:18]} 60. Qd5+ {[%emt 0:00:22]} Kh7 {[%emt 0:00:33]} 61. c5 {[%emt 0:02:22]} Qc2+ {[%emt 0:02:43]} 62. Ka5 {[%emt 0:00:27]} Qc3+ {[%emt 0:00:41]} 63. Ka6 {[%emt 0:00:03]} Qa3+ {[%emt 0:01:20]} 64. Kb7 {[%emt 0:00:05]} Qa5 {[%emt 0:00:25]} 65. Qe4+ {[%emt 0:00:18]} g6 {[%emt 0:00:42]} 66. c6 {[%emt 0:00:06]} Qxa2 {[%emt 0:00:07]} 67. c7 {[%emt 0:00:12]} Qf7 {[%emt 0:00:03]} 68. Kb8 {[%emt 0:00:13]} Qf6 {[%emt 0:00:29]} 69. c8=Q {[%emt 0:00:16]} Qxb6+ {[%emt 0:00:13]} 70. Qcb7+ {[%emt 0:00:06]} 1-0

[Event "EYCC Open-U12 2019"]
[Site "Bratislava"]
[Date "2019.08.09"]
[Round "8.3"]
[White "Pidluznij, Gleb"]
[Black "Han, Yichen"]
[Result "1/2-1/2"]
[ECO "A48"]
[WhiteElo "1947"]
[BlackElo "2217"]
[Annotator "NA"]
[PlyCount "163"]
[EventDate "2019.08.02"]
[EventType "swiss"]
[EventCountry "SVK"]
[SourceTitle "playchess.com"]
[Source "ChessBase"]
[SourceQuality "1"]
[TimeControl "40/5400+30:1800+30"]

1. d4 {[%emt 0:00:00]} Nf6 {[%emt 0:00:00]} 2. Nf3 {[%emt 0:00:02]} g6 {[%emt 0:00:00]} 3. Nbd2 {[%emt 0:00:18]} Bg7 {[%emt 0:02:12]} 4. e4 {[%emt 0:00:33]} d6 {[%emt 0:00:08]} 5. Bb5+ {[%emt 0:01:20]} c6 {[%emt 0:00:53]} 6. Bd3 {[%emt 0:00:53]} O-O {[%emt 0:02:03]} 7. O-O {[%emt 0:00:51]} Nbd7 {[%emt 0:00:48]} 8. Re1 {[%emt 0:01:28]} Qc7 {[%emt 0:02:06]} 9. c3 {[%emt 0:00:41]} e5 {[%emt 0:03:14]} 10. a4 {[%emt 0:02:50]} Re8 {[%emt 0:03:20]} 11. Nc4 {[%emt 0:07:01]} Nf8 {[%emt 0:08:29]} 12. dxe5 {[%emt 0:08:08]} dxe5 {[%emt 0:00:19]} 13. h3 {[%emt 0:00:31]} Nh5 {[%emt 0:05:48]} 14. Qc2 {[%emt 0:10:51]} Nf4 {[%emt 0:03:49]} 15. Bxf4 {[%emt 0:06:45]} exf4 {[%emt 0:00:07]} 16. e5 {[%emt 0:04:09]} Nd7 {[%emt 0:11:46]} 17. Nd6 {[%emt 0:04:49]} Re7 {[%emt 0:00:47]} 18. Nxf7 {[%emt 0:06:59]} Rxf7 {[%emt 0:03:16]} 19. e6 {[%emt 0:01:08]} Rf8 {[%emt 0:01:10]} 20. exd7 {[%emt 0:02:33]} Bxd7 {[%emt 0:00:45]} 21. Qb3+ {[%emt 0:12:02]} Kh8 {[%emt 0:00:22]} 22. Ng5 {[%emt 0:06:47]} Bf6 {[%emt 0:02:54]} 23. Ne6 {[%emt 0:02:52]} Bxe6 {[%emt 0:00:36]} 24. Qxe6 {[%emt 0:00:33]} Rad8 {[%emt 0:01:51]} 25. Rad1 {[%emt 0:08:35]} f3 {[%emt 0:03:42]} 26. g3 {[%emt 0:00:35]} Rd5 {[%emt 0:00:16]} 27. Bc4 {[%emt 0:02:16]} Re5 {[%emt 0:12:24]} 28. Rxe5 {[%emt 0:00:55]} Qxe5 {[%emt 0:00:04]} 29. Qxe5 {[%emt 0:00:39]} Bxe5 {[%emt 0:00:04]} 30. Rd7 {[%emt 0:00:26]} b5 {[%emt 0:01:05]} 31. axb5 {[%emt 0:00:57]} cxb5 {[%emt 0:00:04]} 32. Bxb5 {[%emt 0:02:16]} Rb8 {[%emt 0:00:11]} 33. c4 {[%emt 0:01:31]} Bxb2 {[%emt 0:03:22]} 34. Rxa7 {[%emt 0:02:02]} Rd8 {[%emt 0:01:40]} 35. Rd7 {[%emt 0:00:36]} Rxd7 {[%emt 0:02:19]} 36. Bxd7 {[%emt 0:00:01]} Bd4 {[%emt 0:00:11]} 37. Bc6 {[%emt 0:00:05]} Kg7 {[%emt 0:00:20]} 38. Bxf3 {[%emt 0:00:08]} Kf6 {[%emt 0:00:13]} 39. Bd5 {[%emt 0:00:35]} g5 {[%emt 0:00:28]} 40. Kg2 {[%emt 0:00:00]} Ke5 {[%emt 0:00:00]} 41. Kf3 {[%emt 0:05:17]} h6 {[%emt 0:02:18]} 42. h4 {[%emt 0:01:01]} Bc5 {[%emt 0:00:49]} 43. hxg5 {[%emt 0:03:01]} hxg5 {[%emt 0:00:05]} 44. Ke2 {[%emt 0:00:25]} Bb6 {[%emt 0:01:04]} 45. f3 {[%emt 0:00:57]} Bc5 {[%emt 0:00:10]} 46. Kd3 {[%emt 0:00:07]} Bf2 {[%emt 0:00:38]} 47. g4 {[%emt 0:00:15]} Bc5 {[%emt 0:04:04]} 48. Kc3 {[%emt 0:00:17]} Bd6 {[%emt 0:00:25]} 49. Bb7 {[%emt 0:01:11]} Be7 {[%emt 0:01:23]} 50. Bd5 {[%emt 0:00:35]} Bd6 {[%emt 0:00:17]} 51. Bb7 {[%emt 0:01:53]} Be7 {[%emt 0:00:08]} 52. Bc8 {[%emt 0:00:58]} Bd6 {[%emt 0:04:16]} 53. f4+ {[%emt 0:00:56]} gxf4 {[%emt 0:00:28]} 54. Bb7 {[%emt 0:00:45]} Be7 {[%emt 0:01:03]} 55. Kd3 {[%emt 0:00:10]} Bc5 {[%emt 0:00:42]} 56. Bd5 {[%emt 0:00:20]} Be7 {[%emt 0:01:03]} 57. Be4 {[%emt 0:01:08]} Bc5 {[%emt 0:01:17]} 58. Bg2 {[%emt 0:03:01]} Bb4 {[%emt 0:01:13]} 59. Bd5 {[%emt 0:02:46]} Be7 {[%emt 0:00:58]} 60. Ke2 {[%emt 0:00:22]} Bb4 {[%emt 0:00:41]} 61. Kf3 {[%emt 0:00:38]} Bc5 {[%emt 0:00:39]} 62. Be4 {[%emt 0:01:42]} Be7 {[%emt 0:00:30]} 63. Bd5 {[%emt 0:00:28]} Bc5 {[%emt 0:00:26]} 64. Kg2 {[%emt 0:00:23]} Bb4 {[%emt 0:00:29]} 65. Kf3 {[%emt 0:00:10]} Bc5 {[%emt 0:01:25]} 66. Bb7 {[%emt 0:00:29]} Bb4 {[%emt 0:00:18]} 67. Bc8 {[%emt 0:00:18]} Kd4 {[%emt 0:01:17]} 68. Be6 {[%emt 0:00:31]} Ke5 {[%emt 0:00:05]} 69. Bg8 {[%emt 0:00:06]} Bc5 {[%emt 0:00:56]} 70. Bh7 {[%emt 0:00:25]} Kd4 {[%emt 0:00:13]} 71. Bg8 {[%emt 0:00:31]} Ke5 {[%emt 0:00:06]} 72. Bf7 {[%emt 0:00:10]} Be7 {[%emt 0:00:20]} 73. Bd5 {[%emt 0:00:10]} Bc5 {[%emt 0:00:27]} 74. Be4 {[%emt 0:00:18]} Kd4 {[%emt 0:00:20]} 75. Kxf4 {[%emt 0:00:05]} Kxc4 {[%emt 0:00:06]} 76. g5 {[%emt 0:00:05]} Bd4 {[%emt 0:00:10]} 77. g6 {[%emt 0:00:04]} Bg7 {[%emt 0:00:05]} 78. Kf5 {[%emt 0:00:04]} Kc5 {[%emt 0:00:16]} 79. Ke6 {[%emt 0:00:04]} Bd4 {[%emt 0:00:14]} 80. Kf7 {[%emt 0:00:06]} Ba1 {[%emt 0:00:09]} 81. g7 {[%emt 0:00:04]} Bxg7 {[%emt 0:00:05]} 82. Kxg7 {[%emt 0:00:05]} 1/2-1/2